Cogmind - Beta 13 @@@ ROGUE MODE // 2024.04.06 @ 16:52:37 Player: ChromeKnight Result: Destroyed by as-35507 with Assembled Maul Performance ------------- Evolutions (0) 0 Regions Visited (3) 600 Robots Destroyed (11) 55 Value Destroyed (264) 264 Prototype IDs (23) 460 Alien Tech Used (0) 0 Bonus (252) 252 TOTAL SCORE: 1631 Bonus ------- Aligned with FarCom 300 Friendly Fire -48 Cogmind --------- Core Integrity 0/250 Matter 295/300 Energy 12/100 System Corruption 0% Temperature Cool (0) Movement Core (450) Ox8 Location -10/Exiles Parts ------- > --- POWER (1) -------- (None) > --- PROPULSION (2) --- (None) > --- UTILITY (2) ------ Cooling System Small Storage Unit > --- WEAPON (2) ------- YOLO Cannon > --- INVENTORY (8) ---- Army-in-a-Box (30/30) Peak State ------------ > --- POWER ------------ Light Ion Engine > --- PROPULSION ------- Aluminum Leg Aluminum Leg > --- UTILITY ---------- Cooling System Small Storage Unit > --- WEAPON ----------- YOLO Cannon > --- INVENTORY -------- Cooling System Cooling System Army-in-a-Box [Rating: 31] Favorites ----------- Power Light Ion Engine Engine Light Ion Engine Propulsion Aluminum Leg Leg Aluminum Leg Utility Small Storage Unit Device Cooling System Storage Small Storage Unit Weapon Beam Rifle Energy Gun Beam Rifle Energy Cannon YOLO Cannon Build | -11 -10 -10 -10 ------- Run | Yrd Mat Min Exi Slots Evolved . | . . . . Power . | . . . . Propulsion . | . . . . Utility . | . . . . Weapon . | . . . . Parts Attached 13 | 6 4 1 2 Power 2 | 1 1 . . Engine 2 | 1 1 . . Core . | . . . . Reactor . | . . . . Propulsion 3 | 2 . 1 . Treads . | . . . . Leg 3 | 2 . 1 . Wheel . | . . . . Hover . | . . . . Flight . | . . . . Utility 3 | 1 1 . 1 Device 1 | . 1 . . Storage 2 | 1 . . 1 Processor . | . . . . Hackware . | . . . . Protection . | . . . . Artifact . | . . . . Weapon 5 | 2 2 . 1 Energy Gun 4 | 2 2 . . Energy Cannon 1 | . . . 1 Ballistic Gun . | . . . . Ballistic Cannon . | . . . . Launcher . | . . . . Special Weapon . | . . . . Impact Weapon . | . . . . Slashing Weapon . | . . . . Piercing Weapon . | . . . . Special Melee Weapon . | . . . . Unidentified Prototypes . | . . . . Parts Lost 3 | . . . 3 Power 1 | . . . 1 Propulsion 2 | . . . 2 Utility . | . . . . Weapon . | . . . . Highest Loss Streak 3 | . . . 3 To Critical Strikes 2 | . . . 2 Average Slot Usage (%) 94 | . 92 100 90 Engine 13 | . 14 14 13 Leg 27 | . 28 28 27 Device 11 | . 6 14 14 Storage 13 | . 14 14 13 Energy Gun 24 | . 28 28 12 Energy Cannon 1 | . . . 7 Naked Turns . | . . . . Heaviest Build 28 | 10 16 16 28 Greatest Support 20 | 20 20 20 20 Greatest Overweight (x) 2 | . . . 2 Average Overweight (x) . | . . . . Largest Inventory Capacity 8 | 8 8 8 8 Average Capacity 7 | 7 8 8 7 Most Carried 8 | 1 8 8 8 Average Carried 6 | . 4 8 6 Final Capacity 8 | 8 8 8 8 Final Carried 8 | 1 8 8 6 Class Distribution -------------------- 100% | Mutant Dominant Class ---------------- Mutant | -10/Materials Mutant | -10/Mines Mutant | -10/Exiles Resources | -11 -10 -10 -10 ----------- Run | Yrd Mat Min Exi Matter Collected 310 | 248 52 10 . Remotely . | . . . . Salvage Created 492 | 96 384 12 . Parts 12 | 2 10 . . Haulers Intercepted 1 | . 1 . . Recyclers Shooed . | . . . . Parts Field Recycled . | . . . . Retrieved Matter . | . . . . Parts Self-Destructed . | . . . . Prevented . | . . . . Kills | -11 -10 -10 -10 ------- Run | Yrd Mat Min Exi Combat Hostiles Destroyed 5 | . 4 1 . Guns 5 | . 4 1 . Classes Destroyed 5 | 1 3 1 . Hauler 1 | . 1 . . Recycler 3 | 1 2 . . Watcher 2 | . 2 . . Grunt 4 | . 4 . . Demolisher 1 | . . 1 . Best Kill Streak 2 | 1 2 1 . Combat Bots Only 2 | . 2 1 . Max Kills in Single Turn 1 | 1 1 1 . Gunslinging . | . . . . Exploded . | . . . . Melee . | . . . . Uniques/NPCs Destroyed . | . . . . Combat | -11 -10 -10 -10 -------- Run | Yrd Mat Min Exi Hostile Shots Fired 69 | . 33 4 32 Missed 18 | . 9 . 9 Damage Taken 834 | . 279 150 405 Core 250 | . 35 43 172 Absorbed by Shields . | . . . . Core Remaining (%) 100 | 100 . . . Volleys Fired 60 | 2 51 4 3 Largest 2 | 2 2 2 1 Hottest 112 | 80 112 112 100 Shots Fired 117 | 4 102 8 3 Gun 114 | 4 102 8 . Cannon 3 | . . . 3 Launcher . | . . . . Special . | . . . . Kinetic . | . . . . Thermal 117 | 4 102 8 3 Explosive . | . . . . Electromagnetic . | . . . . Robot Hit Streak 17 | 2 17 2 3 Robot Miss Streak 5 | 1 5 2 . Penetration Max . | . . . . Secondary Targets . | . . . . Shots Hit Robots 60 | 2 52 4 2 Core Hits 24 | 2 16 2 4 Critical Kills . | . . . . Critical Parts Destroyed . | . . . . Critical Strikes 1 | . 1 . . Burn 1 | . 1 . . Melee Attacks . | . . . . Impact . | . . . . Slashing . | . . . . Piercing . | . . . . Sneak Attacks . | . . . . Combat Hostiles . | . . . . Follow-up Attacks . | . . . . Damage Inflicted 784 | 24 664 58 38 Guns 746 | 24 664 58 . Cannons 18 | . . . 18 Explosions 20 | . . . 20 Melee . | . . . . Ramming . | . . . . Kinetic . | . . . . Thermal 784 | 24 664 58 38 Explosive . | . . . . Electromagnetic . | . . . . Impact . | . . . . Slashing . | . . . . Piercing . | . . . . Highest Corruption . | . . . . Average Corruption . | . . . . Corruption Purged . | . . . . Corruption Blocked . | . . . . Overload Shots . | . . . . Overflow Damage . | . . . . Projectiles . | . . . . Explosions . | . . . . Melee . | . . . . Knockbacks . | . . . . Impact . | . . . . Kinetic . | . . . . Secondary . | . . . . Self-Inflicted Damage . | . . . . Shots . | . . . . Rammed . | . . . . Targets Rammed . | . . . . Kicked . | . . . . Crushed . | . . . . Highest Temperature 389 | 6 389 . . Average Temperature 112 | 3 116 . . Received Heat Transfer 234 | . 174 . 60 Effects 1 | . 1 . . Shutdowns 1 | . 1 . . Siege Activations . | . . . . Robots Corrupted . | . . . . Combat Hostiles . | . . . . Parts Fried . | . . . . Impact Corruptions . | . . . . Robots Melted . | . . . . Combat Hostiles . | . . . . Parts Melted 4 | . 4 . . Heat Transferred 1985 | 50 1687 148 100 Parts Sabotaged . | . . . . Parts Stolen . | . . . . Parts Stripped . | . . . . Power Chain Reactions . | . . . . Alert | -11 -10 -10 -10 ------- Run | Yrd Mat Min Exi Peak Influence 200 | 5 200 50 . Initial 5 | . 3 5 . Average 32 | 2 56 8 . Maximum Alert Level 1 | . 1 . . Low Security (%) 99 | 100 98 100 . Level 1 . | . 1 . . Level 2 . | . . . . Level 3 . | . . . . Level 4 . | . . . . Level 5 . | . . . . High Security . | . . . . Max Security . | . . . . Squads Dispatched 1 | . 1 . . Investigation . | . . . . Extermination . | . . . . Reinforcement 1 | . 1 . . Assault . | . . . . Garrison . | . . . . Intercept . | . . . . Searches Triggered . | . . . . Construction Impeded . | . . . . Haulers Reinforced . | . . . . Active Scanning Responses . | . . . . Cargo Convoy Interrupts . | . . . . Stealth | -11 -10 -10 -10 --------- Run | Yrd Mat Min Exi Distress Signals 1 | . 1 . . Communications Jammed . | . . . . Distress Signals . | . . . . Times Spotted 21 | . 12 1 8 Peak Tracking Total 9 | . 5 1 9 Tactical Retreats 3 | . 3 . . Traps | -11 -10 -10 -10 ------- Run | Yrd Mat Min Exi Traps Triggered . | . . . . Indirectly . | . . . . Trap Hack Attempts . | . . . . Triggered . | . . . . Disarmed . | . . . . Reprogrammed . | . . . . Reused . | . . . . Traps Extracted . | . . . . Installed . | . . . . Triggered . | . . . . Machines | -11 -10 -10 -10 ---------- Run | Yrd Mat Min Exi Machines Disabled 3 | . 1 . 2 Max in Single Turn 2 | . 1 . 2 Machines Repaired . | . . . . Machines Dismantled . | . . . . Machines Sabotaged . | . . . . Overloaded Fab Kills . | . . . . Hacking | -11 -10 -10 -10 --------- Run | Yrd Mat Min Exi Machines Accessed 2 | . 1 . 1 Terminals 1 | . 1 . . Fabricators . | . . . . Repair Stations . | . . . . Recycling Units . | . . . . Scanalyzers . | . . . . Garrison Access . | . . . . Total Hacks 3 | . 2 . 1 Successful 2 | . 1 . 1 Failed 1 | . 1 . . Catastrophic . | . . . . Database Lockouts . | . . . . Manual 1 | . . . 1 Terminals 2 | . 2 . . Fabricators . | . . . . Repair Stations . | . . . . Recycling Units . | . . . . Scanalyzers . | . . . . Garrison Access . | . . . . Terminal Hacks 2 | . 1 . 1 Zone Layout 1 | . 1 . . Derelict Proto ID Bank 1 | . . . 1 Fabricator Hacks . | . . . . Repair Station Hacks . | . . . . Recycling Unit Hacks . | . . . . Scanalyzer . | . . . . Garrison Access Hacks . | . . . . Unauthorized Hacks . | . . . . Terminals . | . . . . Fabricators . | . . . . Repair Stations . | . . . . Recycling Units . | . . . . Scanalyzers . | . . . . Garrison Access . | . . . . Data Cores Recovered . | . . . . Used . | . . . . Hacking Detections 1 | . 1 . . Full Trace Events . | . . . . Feedback Events . | . . . . Feedback Blocked . | . . . . Robot Schematics Acquired . | . . . . Robots Built . | . . . . Authchips . | . . . . Time . | . . . . Total Robot Build Rating . | . . . . Part Schematics Acquired . | . . . . Parts Built . | . . . . Authchips . | . . . . Time . | . . . . Total Part Build Rating . | . . . . Parts Repaired . | . . . . Time . | . . . . Parts Recycled . | . . . . Recycled Matter . | . . . . Retrieved Matter . | . . . . Retrieved Components . | . . . . Parts Scanalyzed . | . . . . Part Schematics Acquired . | . . . . Parts Damaged . | . . . . Bothacking | -11 -10 -10 -10 ------------ Run | Yrd Mat Min Exi Used RIF Installer . | . . . . Robots Hacked . | . . . . Non-combat . | . . . . Combat . | . . . . Robot Hacks Applied . | . . . . Relay Couplers Released . | . . . . Fabnet Peak Effective % . | . . . . Robots Rewired . | . . . . Allies Hacked . | . . . . Hacks Repelled . | . . . . Allies | -11 -10 -10 -10 -------- Run | Yrd Mat Min Exi Total Allies . | . . . . Largest Group . | . . . . Highest-Rated Group . | . . . . Highest-Rated Ally . | . . . . Total Orders . | . . . . Ally Attacks . | . . . . Total Damage . | . . . . Kills . | . . . . Allies Corrupted . | . . . . Allies Melted . | . . . . Intel | -11 -10 -10 -10 ------- Run | Yrd Mat Min Exi Robot Analysis Total . | . . . . Derelict Logs Recovered 3 | . . 3 . Drone Launches . | . . . . Drone Recoveries . | . . . . Exploration | -11 -10 -10 -10 ------------- Run | Yrd Mat Min Exi Turns Passed 1447 | 65 557 486 339 Spaces Moved 870 | 44 310 307 209 Core 4 | 4 . . . Treads . | . . . . Legs 866 | 40 310 307 209 Wheels . | . . . . Hover . | . . . . Flight . | . . . . Fastest Speed 50 | 50 120 120 120 Average Speed 127 | 113 120 120 151 Slowest Speed 260 | 120 120 120 260 Overloaded Moves . | . . . . Propulsion Burnouts . | . . . . Robots Hopped . | . . . . Cave-ins Triggered . | . . . . Exploration Rate (%) 37 | 3 40 66 42 Regions Visited 3 Branch Regions 2 Pre-discovered Areas 3 | . . 3 . Known Exits Taken . | . . . . Unknown Exits Taken 3 | 1 1 1 . Scrap Searched 1 | . . 1 . Spaces Dug . | . . . . Terrain Destroyed 43 | . . . 43 Melee . | . . . . Projectile 1 | . . . 1 AOE 42 | . . . 42 Terrain Rammed . | . . . . Walls Destroyed . | . . . . Machines Disabled . | . . . . Actions | -11 -10 -10 -10 --------- Run | Yrd Mat Min Exi Total 1090 | 52 395 416 227 Wait 116 | . 11 103 2 Move 867 | 43 309 306 209 Hop . | . . . . Pick Up 16 | 1 12 1 2 Fast Attach 11 | 6 3 . 2 Attach . | . . . . Detach . | . . . . Swap 2 | . 1 1 . Drop 18 | . 8 1 9 Fire 60 | 2 51 4 3 Melee . | . . . . Ram . | . . . . Kick . | . . . . Crush . | . . . . Escape Stasis . | . . . . Rewire . | . . . . Trap . | . . . . Miscellaneous . | . . . . Route ------- -11/Scrapyard -10/Materials (discovered 2 exits: [*Mat] / [*Min]) -10/Mines -10/Exiles History --------- Turn | Location | Event 33 | -11/Scrapyard | Discovered new exit (range 14) 66 | -11/Scrapyard | Entered Materials 141 | -10/Materials | Discovered new exit (range 12) 215 | -10/Materials | Discovered new exit (range 7) 316 | -10/Materials | Build established: Mutant 623 | -10/Materials | Entered Mines 635 | -10/Mines | Learned location of Zion (-6) 654 | -10/Mines | Received a Rocket Launcher from a helpful Derelict 660 | -10/Mines | Met a Derelict bent on vengeance 690 | -10/Mines | Learned 4 Materials zone layouts 708 | -10/Mines | Assembled infested the area 880 | -10/Mines | Learned location of Storage (-7) 1104 | -10/Mines | Deemed a non-threat by the Exiles lab entrance 1104 | -10/Mines | Discovered new exit (range 5) 1109 | -10/Mines | Entered Exiles 1138 | -10/Exiles | Met 8R-AWN 1160 | -10/Exiles | Met EX-HEX 1191 | -10/Exiles | Met EX-BIN 1208 | -10/Exiles | Aligned with FarCom system 1209 | -10/Exiles | Given EX-Vault access code 1237 | -10/Exiles | Opened EX-Vault 1250 | -10/Exiles | Found Army-in-a-Box 1255 | -10/Exiles | Found YOLO Cannon 1320 | -10/Exiles | Warned to stay clear of 0b10 Research branches 1431 | -10/Exiles | Attacked by the Exiles 1436 | -10/Exiles | Core integrity fell below 50% 1448 | -10/Exiles | Destroyed by as-35507 with Assembled Maul Last Messages --------------- 01437_ Penetrated by HV Slug. 01437_ Lgt. Ion Engine destroyed. 01437_ HV Slug penetrates Wall. 01440_ Penetrated by HV Slug. 01440_ HV Slug penetrates Wall. 01440_ Penetrated by HV Slug. 01440_ HV Slug penetrates Wall. 01442_ Penetrated by HV Slug. 01442_ HV Slug penetrates Machine. 01442_ HV Slug penetrates Wall. 01443_ Knocked back. 01444_ Penetrated by HV Slug. 01444_ Critical hit (Destroy). 01444_ Aluminum Leg destroyed. 01444_ HV Slug penetrates Machine. 01444_ HV Slug penetrates Wall. 01446_ Penetrated by HV Slug. 01446_ HV Slug penetrates Machine. 01446_ Penetrated by HV Slug. 01446_ HV Slug penetrates Wall. Map ----- +----------------------------------------------------+ | #????????????????????????????????????????????????? | | #????????????????????????????????????????????????? | | #????????????????????????????????????????????????? | | "????????????????????????????????????????????????? | | #????????????????????????????????????????????????? | | "????????????????????????????????????????????????? | | #????????????????????????????????????????????????? | | #????????????????????????????????????????????????? | | #????????????????????????????????????????????????? | | ?????????????????????????????????????????????????? | | ?????????????????????????????????????????????????? | | ?????????????????????????????????????????????????? | | ######????????????????????????????????????? ????? | | """"""##?????????#####????????????????????? ??? | | "" """"##???????## #???????????????????# #??? | | " " #???????# ###??????????????## ##?? | | " """#???????# ##?????????????# #?? | | " "#???????# #?????????????# #?? | | " "##??????# #????????????## ??? | | ""###????# g #???????????## #???? | | """#?????#; #???????????# #???? | | "#????### ;##????????### #????? | | ##???# ########## #????? | | ##?## a #""""## #?????? | | ### a aa * ##????? | | #; a@ * #????? | | ##;# ##???? | | ""##;" "#### ###?? | | #"""#####;####??#### * ### | | ######???# ????????##### # | | ##????????###????????????### | | " ##??????????????????????????### | | """ ""#?????????????????????????????### | | "#" "##??????????????????????????????#" | | "##"""""""##???????????????????????????????#### | | #?#########???????????????????????????????????# | | ??????????????????????????????????????????????## | | ???????????????????????????????????????????????### | | ?????????????????????????????????????????????????# | | ?????????????????????????????????????????????????# | | ?????????????????????????????????????????????????? | | ?????????????????????????????????????????????????? | | ?????????????????????????????????????????????????? | | ?????????????????????????????????????????????????? | | ?????????????????????????????????????????????????? | | ?????????????????????????????????????????????????? | | ?????????????????????????????????????????????????? | | ?????????????????????????????????????????????????? | | ?????????????????????????????????????????????????? | | ?????????????????????????????????????????????????? | +----------------------------------------------------+ Best States ------------- Heat Dissipation 47 Energy Generation 10 Energy Capacity 125 Matter Stores 300 Matter Capacity 300 Sight Range 16 Terrain Scan Density 10 Evasion (%) 55 Item Schematics ----------------- None Robot Schematics ------------------ None Fabricated ------------ Nothing Alien Tech Used ----------------- None Achievements -------------- None Challenges ------------ None Game ------ Seed TrackerVisualSink Manual? 0 Play Time 00:08:53 Cumulative 450.5 hours Start 2024.04.06 @ 16:45:53 End 2024.04.06 @ 16:52:37 Sessions 1 Manual Loads 0 Difficulty Rogue Special Mode None Game No. 778 Rogue 623 Adventurer 148 Explorer 7 Win Type - Total 20 Types 16/1/2/1/0/0/0/0/0 Lore% 77 Gallery% 89 Achievement% 74 Wizard Run 0 Options --------- Layout 1 ASCII 0 Keyboard 0 Movement Numpad Keybinds 0 Fullscreen 2 Font 24/Smallcaps Map View 50x35 Zoom Use 0% Tactical HUD 1 Map Filters NONE Filters NONE Steam 1 RUN: 9513d35b-a1e1-4aa0-a0cf-e0a49646dfec